Department family,Entity,Date,Expense type,Expense area,Supplier,Transaction number, Amount 
Elht - Main Radiology Dept,Elht - Main Radiology Dept,21/07/2020,Scan Referrals,Diagnostic & Clinical Support,4ways Healthcare,1873594,"43,227.02"
Rbth - Pharmacy,Rbth - Pharmacy,02/07/2020,Drugs - Budget,Diagnostic & Clinical Support,Aah Pharmaceuticals Ltd Hills,1870984,"32,170.58"
Rbth - Pharmacy,Rbth - Pharmacy,07/07/2020,Drugs - Budget,Diagnostic & Clinical Support,Aah Pharmaceuticals Ltd Hills,1871419,"56,177.70"
Bgth - Pharmacy,Bgth - Pharmacy,01/07/2020,Drugs - Budget,Diagnostic & Clinical Support,Aah Pharmaceuticals Ltd Hills,1870028,-161.26
Bgth - Pharmacy,Bgth - Pharmacy,01/07/2020,Drugs - Budget,Diagnostic & Clinical Support,Aah Pharmaceuticals Ltd Hills,1870032,-134.00
Bgth - Pharmacy,Bgth - Pharmacy,01/07/2020,Drugs - Budget,Diagnostic & Clinical Support,Aah Pharmaceuticals Ltd Hills,1870034,-11.28
Bgth - Pharmacy,Bgth - Pharmacy,01/07/2020,Drugs - Budget,Diagnostic & Clinical Support,Aah Pharmaceuticals Ltd Hills,1870035,-28.68
Bgth - Pharmacy,Bgth - Pharmacy,01/07/2020,Drugs - Budget,Diagnostic & Clinical Support,Aah Pharmaceuticals Ltd Hills,1870036,-34.09
Bgth - Pharmacy,Bgth - Pharmacy,01/07/2020,Drugs - Budget,Diagnostic & Clinical Support,Aah Pharmaceuticals Ltd Hills,1870037,-43.10
Bgth - Pharmacy,Bgth - Pharmacy,01/07/2020,Drugs - Budget,Diagnostic & Clinical Support,Aah Pharmaceuticals Ltd Hills,1870038,-83.02
Bgth - Pharmacy,Bgth - Pharmacy,01/07/2020,Drugs - Budget,Diagnostic & Clinical Support,Aah Pharmaceuticals Ltd Hills,1870039,-128.38
Bgth - Pharmacy,Bgth - Pharmacy,01/07/2020,Drugs - Budget,Diagnostic & Clinical Support,Aah Pharmaceuticals Ltd Hills,1870042,-3.84
Bgth - Pharmacy,Bgth - Pharmacy,01/07/2020,Drugs - Budget,Diagnostic & Clinical Support,Aah Pharmaceuticals Ltd Hills,1870044,-1.00
Bgth - Pharmacy,Bgth - Pharmacy,01/07/2020,Drugs - Budget,Diagnostic & Clinical Support,Aah Pharmaceuticals Ltd Hills,1870045,-2.96
Bgth - Pharmacy,Bgth - Pharmacy,01/07/2020,Drugs - Budget,Diagnostic & Clinical Support,Aah Pharmaceuticals Ltd Hills,1870046,-3.98
Bgth - Pharmacy,Bgth - Pharmacy,01/07/2020,Drugs - Budget,Diagnostic & Clinical Support,Aah Pharmaceuticals Ltd Hills,1870048,-4.24
Bgth - Pharmacy,Bgth - Pharmacy,01/07/2020,Drugs - Budget,Diagnostic & Clinical Support,Aah Pharmaceuticals Ltd Hills,1870158,-9.40
Bgth - Pharmacy,Bgth - Pharmacy,02/07/2020,Drugs - Budget,Diagnostic & Clinical Support,Aah Pharmaceuticals Ltd Hills,1870364,-46.16
Bgth - Pharmacy,Bgth - Pharmacy,02/07/2020,Drugs - Budget,Diagnostic & Clinical Support,Aah Pharmaceuticals Ltd Hills,1870365,-0.82
Bgth - Pharmacy,Bgth - Pharmacy,21/07/2020,Drugs - Budget,Diagnostic & Clinical Support,Aah Pharmaceuticals Ltd Hills,1875849,-46.16
Rbth - Pharmacy,Rbth - Pharmacy,01/07/2020,Drugs - Budget,Diagnostic & Clinical Support,Aah Pharmaceuticals Ltd Hills,1870031,-6.70
Rbth - Pharmacy,Rbth - Pharmacy,01/07/2020,Drugs - Budget,Diagnostic & Clinical Support,Aah Pharmaceuticals Ltd Hills,1870033,-8.90
Rbth - Pharmacy,Rbth - Pharmacy,01/07/2020,Drugs - Budget,Diagnostic & Clinical Support,Aah Pharmaceuticals Ltd Hills,1870050,-0.68
Rbth - Pharmacy,Rbth - Pharmacy,01/07/2020,Drugs - Budget,Diagnostic & Clinical Support,Aah Pharmaceuticals Ltd Hills,1870051,-3.30
Rbth - Pharmacy,Rbth - Pharmacy,01/07/2020,Drugs - Budget,Diagnostic & Clinical Support,Aah Pharmaceuticals Ltd Hills,1870052,-3.46
Rbth - Pharmacy,Rbth - Pharmacy,01/07/2020,Drugs - Budget,Diagnostic & Clinical Support,Aah Pharmaceuticals Ltd Hills,1870055,-4.00
Rbth - Pharmacy,Rbth - Pharmacy,01/07/2020,Drugs - Budget,Diagnostic & Clinical Support,Aah Pharmaceuticals Ltd Hills,1870058,-5.60
Rbth - Pharmacy,Rbth - Pharmacy,01/07/2020,Drugs - Budget,Diagnostic & Clinical Support,Aah Pharmaceuticals Ltd Hills,1870063,-5.88
Rbth - Pharmacy,Rbth - Pharmacy,01/07/2020,Drugs - Budget,Diagnostic & Clinical Support,Aah Pharmaceuticals Ltd Hills,1870066,-7.53
Rbth - Pharmacy,Rbth - Pharmacy,01/07/2020,Drugs - Budget,Diagnostic & Clinical Support,Aah Pharmaceuticals Ltd Hills,1870067,-7.86
Rbth - Pharmacy,Rbth - Pharmacy,01/07/2020,Drugs - Budget,Diagnostic & Clinical Support,Aah Pharmaceuticals Ltd Hills,1870068,-9.55
Rbth - Pharmacy,Rbth - Pharmacy,01/07/2020,Drugs - Budget,Diagnostic & Clinical Support,Aah Pharmaceuticals Ltd Hills,1870069,-9.90
Rbth - Pharmacy,Rbth - Pharmacy,01/07/2020,Drugs - Budget,Diagnostic & Clinical Support,Aah Pharmaceuticals Ltd Hills,1870070,-18.33
Rbth - Pharmacy,Rbth - Pharmacy,01/07/2020,Drugs - Budget,Diagnostic & Clinical Support,Aah Pharmaceuticals Ltd Hills,1870073,-21.56
Rbth - Pharmacy,Rbth - Pharmacy,01/07/2020,Drugs - Budget,Diagnostic & Clinical Support,Aah Pharmaceuticals Ltd Hills,1870074,-23.40
Rbth - Pharmacy,Rbth - Pharmacy,01/07/2020,Drugs - Budget,Diagnostic & Clinical Support,Aah Pharmaceuticals Ltd Hills,1870076,-25.68
Rbth - Pharmacy,Rbth - Pharmacy,01/07/2020,Drugs - Budget,Diagnostic & Clinical Support,Aah Pharmaceuticals Ltd Hills,1870077,-26.00
Rbth - Pharmacy,Rbth - Pharmacy,01/07/2020,Drugs - Budget,Diagnostic & Clinical Support,Aah Pharmaceuticals Ltd Hills,1870079,-29.50
Rbth - Pharmacy,Rbth - Pharmacy,01/07/2020,Drugs - Budget,Diagnostic & Clinical Support,Aah Pharmaceuticals Ltd Hills,1870080,-39.20
Rbth - Pharmacy,Rbth - Pharmacy,01/07/2020,Drugs - Budget,Diagnostic & Clinical Support,Aah Pharmaceuticals Ltd Hills,1870082,-40.40
Rbth - Pharmacy,Rbth - Pharmacy,01/07/2020,Drugs - Budget,Diagnostic & Clinical Support,Aah Pharmaceuticals Ltd Hills,1870083,-47.22
Rbth - Pharmacy,Rbth - Pharmacy,01/07/2020,Drugs - Budget,Diagnostic & Clinical Support,Aah Pharmaceuticals Ltd Hills,1870084,-47.22
Rbth - Pharmacy,Rbth - Pharmacy,01/07/2020,Drugs - Budget,Diagnostic & Clinical Support,Aah Pharmaceuticals Ltd Hills,1870085,-62.20
Rbth - Pharmacy,Rbth - Pharmacy,01/07/2020,Drugs - Budget,Diagnostic & Clinical Support,Aah Pharmaceuticals Ltd Hills,1870086,-62.20
Rbth - Pharmacy,Rbth - Pharmacy,01/07/2020,Drugs - Budget,Diagnostic & Clinical Support,Aah Pharmaceuticals Ltd Hills,1870089,-71.60
Rbth - Pharmacy,Rbth - Pharmacy,01/07/2020,Drugs - Budget,Diagnostic & Clinical Support,Aah Pharmaceuticals Ltd Hills,1870090,-78.96
Rbth - Pharmacy,Rbth - Pharmacy,01/07/2020,Drugs - Budget,Diagnostic & Clinical Support,Aah Pharmaceuticals Ltd Hills,1870091,-90.00
Rbth - Pharmacy,Rbth - Pharmacy,01/07/2020,Drugs - Budget,Diagnostic & Clinical Support,Aah Pharmaceuticals Ltd Hills,1870092,-94.44
Rbth - Pharmacy,Rbth - Pharmacy,01/07/2020,Drugs - Budget,Diagnostic & Clinical Support,Aah Pharmaceuticals Ltd Hills,1870093,-94.44
Rbth - Pharmacy,Rbth - Pharmacy,01/07/2020,Drugs - Budget,Diagnostic & Clinical Support,Aah Pharmaceuticals Ltd Hills,1870095,-129.24
Rbth - Pharmacy,Rbth - Pharmacy,01/07/2020,Drugs - Budget,Diagnostic & Clinical Support,Aah Pharmaceuticals Ltd Hills,1870096,-212.64
Rbth - Pharmacy,Rbth - Pharmacy,01/07/2020,Drugs - Budget,Diagnostic & Clinical Support,Aah Pharmaceuticals Ltd Hills,1870097,-433.20
Rbth - Pharmacy,Rbth - Pharmacy,01/07/2020,Drugs - Budget,Diagnostic & Clinical Support,Aah Pharmaceuticals Ltd Hills,1870098,-810.00
Rbth - Pharmacy,Rbth - Pharmacy,01/07/2020,Drugs - Budget,Diagnostic & Clinical Support,Aah Pharmaceuticals Ltd Hills,1870155,-452.70
Rbth - Pharmacy,Rbth - Pharmacy,01/07/2020,Drugs - Budget,Diagnostic & Clinical Support,Aah Pharmaceuticals Ltd Hills,1870156,-59.95
Rbth - Pharmacy,Rbth - Pharmacy,01/07/2020,Drugs - Budget,Diagnostic & Clinical Support,Aah Pharmaceuticals Ltd Hills,1870157,-50.30
Rbth - Pharmacy,Rbth - Pharmacy,02/07/2020,Drugs - Budget,Diagnostic & Clinical Support,Aah Pharmaceuticals Ltd Hills,1870358,-6.00
Rbth - Pharmacy,Rbth - Pharmacy,02/07/2020,Drugs - Budget,Diagnostic & Clinical Support,Aah Pharmaceuticals Ltd Hills,1870366,-6.85
Rbth - Pharmacy,Rbth - Pharmacy,02/07/2020,Drugs - Budget,Diagnostic & Clinical Support,Aah Pharmaceuticals Ltd Hills,1870367,-168.00
Rbth - Pharmacy,Rbth - Pharmacy,02/07/2020,Drugs - Budget,Diagnostic & Clinical Support,Aah Pharmaceuticals Ltd Hills,1870368,-27.84
Rbth - Pharmacy,Rbth - Pharmacy,02/07/2020,Drugs - Budget,Diagnostic & Clinical Support,Aah Pharmaceuticals Ltd Hills,1870370,-79.80
Rbth - Pharmacy,Rbth - Pharmacy,02/07/2020,Drugs - Budget,Diagnostic & Clinical Support,Aah Pharmaceuticals Ltd Hills,1870371,-956.00
Rbth - Pharmacy,Rbth - Pharmacy,14/07/2020,Drugs - Budget,Diagnostic & Clinical Support,Aah Pharmaceuticals Ltd Hills,1873836,-0.99
Rbth - Pharmacy,Rbth - Pharmacy,16/07/2020,Drugs - Budget,Diagnostic & Clinical Support,Aah Pharmaceuticals Ltd Hills,1874789,-18.40
Rbth - Pharmacy,Rbth - Pharmacy,21/07/2020,Drugs - Budget,Diagnostic & Clinical Support,Aah Pharmaceuticals Ltd Hills,1875123,-17.94
Rbth - Pharmacy,Rbth - Pharmacy,21/07/2020,Drugs - Budget,Diagnostic & Clinical Support,Aah Pharmaceuticals Ltd Hills,1875124,-142.56
Rbth - Pharmacy,Rbth - Pharmacy,21/07/2020,Drugs - Budget,Diagnostic & Clinical Support,Aah Pharmaceuticals Ltd Hills,1875125,-0.91
Rbth - Pharmacy,Rbth - Pharmacy,21/07/2020,Drugs - Budget,Diagnostic & Clinical Support,Aah Pharmaceuticals Ltd Hills,1875126,-20.90
Rbth - Pharmacy,Rbth - Pharmacy,21/07/2020,Drugs - Budget,Diagnostic & Clinical Support,Aah Pharmaceuticals Ltd Hills,1875127,-4.20
Rbth - Pharmacy,Rbth - Pharmacy,21/07/2020,Drugs - Budget,Diagnostic & Clinical Support,Aah Pharmaceuticals Ltd Hills,1875854,-1.90
E&F Senior Managers,E&F Senior Managers,16/07/2020,Comp H Ware Purch Non-Capital,Estates & Facilities,Aid Call,30152,"21,327.18"
Elht Emergency Preparedness,Elht Emergency Preparedness,09/07/2020,Med & Surg Supplies,Corporate Services,Air Filtration Solutions Ltd,1872381,"25,295.00"
Elht - Histopathology,Elht - Histopathology,09/07/2020,Test Referrals,Diagnostic & Clinical Support,Backlogs Ltd,1864919,"41,435.00"
Rbth - Pharmacy,Rbth - Pharmacy,14/07/2020,Drugs - Budget,Diagnostic & Clinical Support,Baxter Healthcare Ltd,1873992,"29,352.21"
Rbth - Pharmacy,Rbth - Pharmacy,21/07/2020,Drugs - Budget,Diagnostic & Clinical Support,Bayer Ltd,1875181,"20,910.50"
Rbth - Pharmacy,Rbth - Pharmacy,21/07/2020,Drugs - Budget,Diagnostic & Clinical Support,Bayer Ltd,1875183,"26,613.30"
Bgth Pfi Contract,Bgth Pfi Contract,02/07/2020,Pfi Unitary Charges,Corporate Services,Burnley General Hosp Phase V Spc Ltd,1836241,"428,976.36"
Bgth Pfi Contract,Bgth Pfi Contract,21/07/2020,Pfi Unitary Charges,Corporate Services,Burnley General Hosp Phase V Spc Ltd,1870977,"443,056.58"
Bgth Pfi Contract,Bgth Pfi Contract,02/07/2020,Pfi Unitary Charges,Corporate Services,Burnley General Hosp Phase V Spc Ltd,1836250,"-428,976.36"
Elht Administration,Elht Administration,01/07/2020,Photocopiers,Estates & Facilities,Canon Uk Limited,1864983,"43,176.77"
Quality & Safety,Quality & Safety,21/07/2020,Subscriptions,Corporate Services,Care Quality Commission,76882,"359,811.00"
Elht Emergency Preparedness,Elht Emergency Preparedness,16/07/2020,Med & Surg Supplies,Corporate Services,Ccs Media Ltd,1873020,"63,000.00"
Balance Sheet,Balance Sheet,01/07/2020,Additions - Auc (P),Non Directorate,Citrix Systems Uk Ltd,30065,"48,680.31"
Systems Support,Systems Support,21/07/2020,Application Maintenance,Corporate Services,Clinisys Solutions Ltd,1864524,"139,387.76"
Community Rent,Community Rent,16/07/2020,Rents,Estates & Facilities,Community Health Partnerships Ltd,77500,"432,772.40"
East Lancs Breast Screening,East Lancs Breast Screening,16/07/2020,Other Costs - Services,Diagnostic & Clinical Support,Community Health Partnerships Ltd,76823,-67.50
Elht Parking,Elht Parking,01/07/2020,Car Parking,Estates & Facilities,Consort Healthcare,1862965,-366.67
Elht Parking,Elht Parking,01/07/2020,Car Parking,Estates & Facilities,Consort Healthcare,1864828,"51,507.62"
Rbth Energy,Rbth Energy,01/07/2020,Electricity,Estates & Facilities,Consort Healthcare,1865411,"202,411.59"
Rbth Pfi Contract,Rbth Pfi Contract,01/07/2020,Pfi Unitary Charges,Corporate Services,Consort Healthcare,1864840,"1,756,016.37"
Bgth Energy,Bgth Energy,16/07/2020,Gas - Boiler Fuel,Estates & Facilities,Corona Energy,1866852,"29,997.02"
Rbth - Pharmacy,Rbth - Pharmacy,01/07/2020,Drugs - Budget,Diagnostic & Clinical Support,Csl Behring,1869056,"25,200.00"
Rbth - Pharmacy,Rbth - Pharmacy,01/07/2020,Drugs - Budget,Diagnostic & Clinical Support,Csl Behring,1869581,"29,400.00"
Rbth - Pharmacy,Rbth - Pharmacy,23/07/2020,Drugs - Budget,Diagnostic & Clinical Support,Csl Behring,1876964,"25,200.00"
Balance Sheet,Balance Sheet,14/07/2020,Additions - Auc (P),Non Directorate,Daisy Corporate Services Limited,30105,"95,297.35"
Quality & Safety,Quality & Safety,01/07/2020,Other Costs - Services,Corporate Services,Datix Limited,1830123,"34,853.44"
East Lancs Breast Screening,East Lancs Breast Screening,14/07/2020,Other Computer Costs Maint,Diagnostic & Clinical Support,Dell Computer Corporation Ltd,1873590,"52,138.98"
Charitable Funds Balance Sheet,Charitable Funds Balance Sheet,03/07/2020,Elht Recharge,Charitable Funds Balance Sheet,East Lancs Hospitals Nhs Trust,263,"55,217.58"
 I.T Telephones, I.T Telephones,01/07/2020,Calls - Sboard/Direct Lines,Corporate Services,Ee Limited (Airtime),1864862,"38,629.77"
 I.T Telephones, I.T Telephones,01/07/2020,Calls - Sboard/Direct Lines,Corporate Services,Ee Limited (Airtime),1868739,"36,924.28"
 I.T Telephones, I.T Telephones,07/07/2020,Calls - Mobile Telephones,Corporate Services,Ee Limited (Airtime),1868993,"38,770.50"
Comp Dept - Trading Account,Comp Dept - Trading Account,21/07/2020,Other Costs - Services,Corporate Services,European Electronique,1875761,"110,814.46"
Dietetics,Dietetics,21/07/2020,Med & Surg Equipment,Diagnostic & Clinical Support,Fresenius Kabi Ltd,1872032,"24,767.60"
Dietetics,Dietetics,09/07/2020,Med & Surg Supplies,Diagnostic & Clinical Support,Fresenius Kabi Ltd,1820942,-43.40
Dietetics,Dietetics,09/07/2020,Med & Surg Supplies,Diagnostic & Clinical Support,Fresenius Kabi Ltd,1820970,-9.75
Dietetics,Dietetics,09/07/2020,Med & Surg Supplies,Diagnostic & Clinical Support,Fresenius Kabi Ltd,1832376,-167.02
Dietetics,Dietetics,09/07/2020,Med & Surg Supplies,Diagnostic & Clinical Support,Fresenius Kabi Ltd,1832377,-164.64
Rbth - Pharmacy,Rbth - Pharmacy,21/07/2020,Drugs - Budget,Diagnostic & Clinical Support,Fresenius Kabi Ltd,1875861,-8.60
Rbth - Pharmacy,Rbth - Pharmacy,21/07/2020,Drugs - Budget,Diagnostic & Clinical Support,Fresenius Kabi Ltd,1875862,-94.50
Rbth  Catering,Rbth  Catering,01/07/2020,Hardware  & Crockery,Estates & Facilities,Fulfil Uk,1867662,"29,880.00"
Rbth  Catering,Rbth  Catering,02/07/2020,Hardware  & Crockery,Estates & Facilities,Fulfil Uk,1869668,"32,820.00"
Rbth  Catering,Rbth  Catering,09/07/2020,Hardware  & Crockery,Estates & Facilities,Fulfil Uk,1871920,"22,800.00"
Rbth  Catering,Rbth  Catering,14/07/2020,Hardware  & Crockery,Estates & Facilities,Fulfil Uk,1873073,"27,360.00"
National Workforce Trnsfmation,National Workforce Trnsfmation,16/07/2020,External Training Consultants,Corporate Services,Ge Healthcare,1872721,"600,000.00"
Elht Emergency Preparedness,Elht Emergency Preparedness,01/07/2020,Med & Surg Supplies,Corporate Services,Genmed Enterprises Ltd,1867563,"103,800.00"
Rbth - Pharmacy,Rbth - Pharmacy,01/07/2020,Drugs - Budget,Diagnostic & Clinical Support,Healthcare At Home Ltd,1868904,"31,394.52"
Rbth - Pharmacy,Rbth - Pharmacy,01/07/2020,Drugs - Budget,Diagnostic & Clinical Support,Healthcare At Home Ltd,1868905,"92,100.00"
Rbth - Pharmacy,Rbth - Pharmacy,01/07/2020,Drugs - Budget,Diagnostic & Clinical Support,Healthcare At Home Ltd,1868907,"46,475.00"
Rbth - Pharmacy,Rbth - Pharmacy,01/07/2020,Drugs - Budget,Diagnostic & Clinical Support,Healthcare At Home Ltd,1868912,"53,675.00"
Rbth - Pharmacy,Rbth - Pharmacy,14/07/2020,Drugs - Budget,Diagnostic & Clinical Support,Healthcare At Home Ltd,1873719,"21,862.92"
Rbth - Pharmacy,Rbth - Pharmacy,21/07/2020,Drugs - Budget,Diagnostic & Clinical Support,Healthcare At Home Ltd,1876075,"42,940.00"
Rbth - Pharmacy,Rbth - Pharmacy,21/07/2020,Drugs - Budget,Diagnostic & Clinical Support,Healthcare At Home Ltd,1876092,"32,175.00"
Elht Administration,Elht Administration,01/07/2020,Postage And Carriage,Estates & Facilities,Healthcare Communications Uk Ltd,1869611,"61,002.50"
Elht Administration,Elht Administration,01/07/2020,Postage And Carriage,Estates & Facilities,Healthcare Communications Uk Ltd,1869612,"56,007.50"
Elht - Main Radiology Dept,Elht - Main Radiology Dept,02/07/2020,X-Ray Equip Maint Contracts,Diagnostic & Clinical Support,Healthcare Software Solutions,1867872,"34,285.50"
Rbth Transport,Rbth Transport,09/07/2020,Car Hire - Other,Estates & Facilities,Holmeswood Coaches Limited,1871408,"52,980.24"
Logistics & Supp Chain,Logistics & Supp Chain,21/07/2020,Software Licence Fee,Corporate Services,Ingenica Solutions Ltd,1868745,"61,520.02"
Logistics & Supp Chain,Logistics & Supp Chain,21/07/2020,Software Licence Fee,Corporate Services,Ingenica Solutions Ltd,1875864,"-61,520.02"
Logistics & Supp Chain,Logistics & Supp Chain,21/07/2020,Software Licence Fee,Corporate Services,Ingenica Solutions Ltd,1875312,"38,466.01"
Balance Sheet,Balance Sheet,23/07/2020,Additions - Auc (P),Non Directorate,Ingenica Solutions Ltd,30088,"38,466.01"
Systems Support,Systems Support,09/07/2020,Application Maintenance,Corporate Services,Interoperability Health (Uk) Limited,1871947,"23,431.03"
Systems Support,Systems Support,09/07/2020,Application Maintenance,Corporate Services,Interoperability Health (Uk) Limited,1871948,"23,431.03"
Outpatient Management,Outpatient Management,01/07/2020,Rent Of Storage Space,Diagnostic & Clinical Support,Iron Mountain (Uk) Limited,1868611,"31,152.21"
Outpatient Management,Outpatient Management,01/07/2020,Rent Of Storage Space,Diagnostic & Clinical Support,Iron Mountain (Uk) Limited,1868753,"41,779.38"
Outpatient Management,Outpatient Management,09/07/2020,Rent Of Storage Space,Diagnostic & Clinical Support,Iron Mountain (Uk) Limited,1872325,"36,197.04"
Covid-19,Covid-19,01/07/2020,I.D Expenses,Non Directorate,"Knightsbridge Furn. Prod, Ltd",1869747,"27,450.00"
Corporate Office,Corporate Office,07/07/2020,Support Services,Corporate Services,Lancashire And South Cumbria Nhs Ft,77304,"50,000.00"
Pro Elh Lancs T H Ft,Pro Elh Lancs T H Ft,01/07/2020,Test Referrals,Diagnostic & Clinical Support,Lancashire Teaching Hospitals Nhs Ft,75146,"101,680.21"
Pro Elh Lancs T H Ft,Pro Elh Lancs T H Ft,01/07/2020,Test Referrals,Diagnostic & Clinical Support,Lancashire Teaching Hospitals Nhs Ft,76989,"37,861.77"
Rbth - Pharmacy,Rbth - Pharmacy,14/07/2020,Drugs - Budget,Diagnostic & Clinical Support,Lloydspharmacy Clinical Homecare,1873802,"27,955.20"
Pro Elh Cen Man Trust,Pro Elh Cen Man Trust,01/07/2020,Test Referrals,Diagnostic & Clinical Support,Manchester University Nhs Foundation Trust,77034,"38,425.00"
Rbth - Cardiac Catheter Lab,Rbth - Cardiac Catheter Lab,14/07/2020,Purch Of Hc-Non Nhs-Priv Sect,Medicine & Emergency Care,Medtronic Ltd,1872660,"214,132.84"
Stroke Programme,Stroke Programme,16/07/2020,Consultancy Services,Corporate Services,Nhs England,71373,"70,690.00"
Community Rent,Community Rent,23/07/2020,Rents,Estates & Facilities,Nhs Property Services,77350,"22,018.16"
Elht-Blood Sciences,Elht-Blood Sciences,21/07/2020,Lab Equipment Contract,Diagnostic & Clinical Support,Ortho Clinical Diagnostics,1875810,"74,490.24"
East Lancs Breast Screening,East Lancs Breast Screening,14/07/2020,Other Computer Costs Maint,Diagnostic & Clinical Support,Philips  Electronics Uk Ltd,1872776,"21,587.00"
East Lancs Breast Screening,East Lancs Breast Screening,07/07/2020,Other Computer Costs Maint,Diagnostic & Clinical Support,Philips Medical,1870945,"21,587.00"
Covid-19,Covid-19,09/07/2020,Other Costs - Services,Non Directorate,Priory Motor Homes,1870910,"39,285.69"
Covid-19,Covid-19,09/07/2020,Other Costs - Services,Non Directorate,Priory Motor Homes,1870911,"25,300.00"
Together A Healthier Future,Together A Healthier Future,02/07/2020,External Training Consultants,Corporate Services,Pwc (Pricewaterhousecoopers Llp),1869546,"30,935.00"
Elht - Histopathology,Elht - Histopathology,09/07/2020,Mes Contracts,Diagnostic & Clinical Support,Roche Diagnostics Ltd,1867927,"67,121.25"
Elht - Histopathology,Elht - Histopathology,09/07/2020,Mes Contracts,Diagnostic & Clinical Support,Roche Diagnostics Ltd,1871901,"67,121.25"
Rbth - Pharmacy,Rbth - Pharmacy,01/07/2020,Drugs - Budget,Diagnostic & Clinical Support,Roche Products Ltd,1869671,"21,059.58"
Director Of Finance,Director Of Finance,14/07/2020,Sla From Elfs,Corporate Services,Salford Royal Nhs Foundation Trust,77207,"38,524.00"
Director Of Finance,Director Of Finance,14/07/2020,Sla From Elfs,Corporate Services,Salford Royal Nhs Foundation Trust,77208,"44,175.00"
Bgth  Endoscopy,Bgth  Endoscopy,21/07/2020,Med & Surg Supplies,Medicine & Emergency Care,Siemens Financial Services Ltd,1835247,"24,400.00"
Bgth  Endoscopy,Bgth  Endoscopy,21/07/2020,Med & Surg Supplies,Medicine & Emergency Care,Siemens Financial Services Ltd,1861594,"24,400.00"
Bgth  Endoscopy,Bgth  Endoscopy,21/07/2020,Med & Surg Supplies,Medicine & Emergency Care,Siemens Financial Services Ltd,1868734,"24,700.00"
Bgth  Endoscopy,Bgth  Endoscopy,21/07/2020,Med & Surg Supplies,Medicine & Emergency Care,Siemens Financial Services Ltd,1868735,"24,700.00"
It Support,It Support,21/07/2020,Pfi Unitary Charges,Corporate Services,Siemens Healthcare,1868789,"58,681.85"
It Support,It Support,21/07/2020,Pfi Unitary Charges,Corporate Services,Siemens Healthcare,1875122,"58,681.85"
It Support,It Support,09/07/2020,Other Computer Costs Mats,Corporate Services,Softcat Ltd,1855374,"39,885.13"
Elht Waste Disposal,Elht Waste Disposal,01/07/2020,Clinical Waste,Estates & Facilities,Srcl Ltd,1856882,"24,467.92"
Elht Waste Disposal,Elht Waste Disposal,01/07/2020,Clinical Waste,Estates & Facilities,Srcl Ltd,1863240,"24,332.94"
Balance Sheet,Balance Sheet,01/07/2020,Nhs Supply Chain,Non Directorate,Supply Chain Coordination Ltd,1864036,"118,310.58"
Balance Sheet,Balance Sheet,01/07/2020,Nhs Supply Chain,Non Directorate,Supply Chain Coordination Ltd,1865722,"142,627.38"
Balance Sheet,Balance Sheet,07/07/2020,Nhs Supply Chain,Non Directorate,Supply Chain Coordination Ltd,1867933,"120,744.30"
Balance Sheet,Balance Sheet,07/07/2020,Nhs Supply Chain,Non Directorate,Supply Chain Coordination Ltd,1870270,104519.87
Balance Sheet,Balance Sheet,14/07/2020,Nhs Supply Chain,Non Directorate,Supply Chain Coordination Ltd,1853387,"133,980.40"
Balance Sheet,Balance Sheet,14/07/2020,Nhs Supply Chain,Non Directorate,Supply Chain Coordination Ltd,1857151,102891.19
Balance Sheet,Balance Sheet,14/07/2020,Nhs Supply Chain,Non Directorate,Supply Chain Coordination Ltd,1858796,124095.58
Balance Sheet,Balance Sheet,14/07/2020,Nhs Supply Chain,Non Directorate,Supply Chain Coordination Ltd,1860774,118293.37
Balance Sheet,Balance Sheet,14/07/2020,Nhs Supply Chain,Non Directorate,Supply Chain Coordination Ltd,1862212,98844.66
Balance Sheet,Balance Sheet,14/07/2020,Nhs Supply Chain,Non Directorate,Supply Chain Coordination Ltd,1872490,130616.83
,,,,,,,8542383.32
